Workbook

Sheet Growth rates
A1: Summary data by Month | K1: Summary data by size class and month | T1: Summary data by size class
A2: Month | B2: sizeclass | C2: mean | D2: SD | E2: N | F2: growth (pos, 0, neg) | J2: Month | K2: sizeclass | L2: mean | M2: SD | N2: N | O2: growth | T2: sizeclass | U2: mean | V2: SD | W2: N | X2: growth (pos, 0, neg)
A3: 6 | B3: 1 pol | C3: 0.02 | D3: NA | E3: 1 | F3: positive | J3: 6 | K3: < 0.6 | L3: -0.025 | M3: 0.005773502692 | N3: 4 | O3: negative | P3: =L3*N3 -> -0.1 | Q3: =M3*N3 -> 0.02309401077 | R3: =Q3*M3 -> 0.0001333333333 | T3: =K45 -> 1 pol | U3: 0 | V3: 0 | W3: 0 | X3: =N45 -> 1
A4: 6 | B4: < 0.6 | C4: -0.025 | D4: 0.005773502692 | E4: 4 | F4: negative | J4: 11 | K4: < 0.6 | L4: -0.0245454545 | M4: 0.02185602785 | N4: 2 | O4: negative | P4: =L4*N4 -> -0.049090909 | Q4: =M4*N4 -> 0.04371205569 | R4: =Q4*M4 -> 0.0009553719064 | T4: 1 pol | U4: 0.02 | V4: 0 | W4: 0 | X4: =N46 -> 1
A5: 6 | B5: < 0.6 | C5: 0.1144117647 | D5: 0.1163638801 | E5: 34 | F5: positive | J5: 23 | K5: < 0.6 | L5: -0.033333333 | M5: 0 | N5: 1 | O5: negative | P5: -0.033333333 | Q5: 0 | R5: 0 | T5: =K5 -> < 0.6 | U5: =O5 -> negative | V5: =SUM(P3:P5)/SUM(N3:N5) -> -0.026060606 | W5: =SQRT(SUM(R3:R5)/SUM(N3:N5)) -> 0.01247 | X5: =N5+N4+N3 -> 7
A6: 6 | B6: < 0.6 | C6: 0 | D6: 0 | E6: 11 | F6: no-growth | J6: 6 | K6: < 0.6 | L6: 0 | M6: 0 | N6: 11 | O6: no-growth | P6: 0 | Q6: 0 | R6: 0 | T6: =K8 -> < 0.6 | U6: =O8 -> no-growth | V6: =SUM(P6:P8)/SUM(N6:N8) -> 0 | W6: =SQRT(SUM(R6:R8)/SUM(N6:N8)) -> 0.00000 | X6: =SUM(O6:O8) -> 0
A7: 6 | B7: 0.6-1.1 | C7: -0.051 | D7: 0.03281259921 | E7: 10 | F7: negative | J7: 11 | K7: < 0.6 | L7: 0 | M7: 0 | N7: 4 | O7: no-growth | P7: 0 | Q7: 0 | R7: 0 | T7: =K14 -> < 0.6 | U7: =O14 -> positive | V7: =SUM(P9:P14)/SUM(N9:N14) -> 0.1214085773 | W7: =SQRT(SUM(R12:R14)/SUM(N12:N14)) -> 0.08288 | X7: =SUM(N9:N14) -> 59
A8: 6 | B8: 0.6-1.1 | C8: 0.1182352941 | D8: 0.1144680793 | E8: 17 | F8: positive | J8: 15 | K8: < 0.6 | L8: 0 | M8: 0 | N8: 4 | O8: no-growth | P8: 0 | Q8: 0 | R8: 0 | T8: =K30 -> 0.6-1.1 | U8: =O30 -> negative | V8: =SUM(P28:P30)/SUM(N28:N30) -> -0.08370370378 | W8: =SQRT(SUM(R28:R30)/SUM(N28:N30)) -> 0.04335 | X8: =SUM(N28:N30) -> 9
A9: 6 | B9: 0.6-1.1 | C9: 0 | D9: 0 | E9: 8 | F9: no-growth | J9: 6 | K9: < 0.6 | L9: 0.1144117647 | M9: 0.1163638801 | N9: 34 | O9: positive | P9: 3.89 | Q9: 3.956371922 | R9: 0.4603787879 | T9: =K37 -> 0.6-1.1 | U9: =O37 -> no-growth | V9: =SUM(P35:P37)/SUM(N35:N37) -> 0 | W9: =SQRT(SUM(R35:R37)/SUM(N35:N37)) -> 0.00000 | X9: =SUM(N35:N37) -> 3
A10: 6 | B10: 1.2-2 | C10: -0.09214285714 | D10: 0.05493752696 | E10: 14 | F10: negative | J10: 11 | K10: < 0.6 | L10: 0.1511515151 | M10: 0.1807656113 | N10: 15 | O10: positive | P10: 2.267272727 | Q10: 2.711484169 | R10: 0.4901430933 | T10: =K44 -> 0.6-1.1 | U10: =O44 -> positive | V10: =SUM(P38:P44)/SUM(N38:N44) -> 0.1276694215 | W10: =SQRT(SUM(R38:R44)/SUM(N38:N44)) -> 0.10724 | X10: =SUM(N42:N44) -> 6
A11: 6 | B11: 1.2-2 | C11: 0.1840740741 | D11: 0.1281603341 | E11: 27 | F11: positive | J11: 15 | K11: < 0.6 | L11: 0.1 | M11: 0 | N11: 1 | O11: positive | P11: 0.1 | Q11: 0 | R11: 0 | T11: =K53 -> 1.2-2 | U11: =O53 -> negative | V11: =SUM(P47:P53)/SUM(N47:N53) -> -0.09924796749 | W11: =SQRT(SUM(R47:R53)/SUM(N47:N53)) -> 0.07254 | X11: =SUM(N51:N53) -> 5
A12: 6 | B12: 1.2-2 | C12: 0 | D12: 0 | E12: 4 | F12: no-growth | J12: 20 | K12: < 0.6 | L12: 0.09 | M12: 0.05033222957 | N12: 4 | O12: positive | P12: 0.36 | Q12: =M12*N12 -> 0.2013289183 | R12: =Q12*M12 -> 0.01013333333 | T12: =K57 -> 1.2-2 | U12: =O57 -> no-growth | V12: =SUM(P54:P57)/SUM(N54:N57) -> 0 | W12: =SQRT(SUM(R51:R57)/SUM(N51:N57)) -> 0.02502 | X12: =SUM(N55:N57) -> 14
A13: 6 | B13: 2.1-5 | C13: -0.3133333333 | D13: 0.1402378931 | E13: 6 | F13: negative | J13: 23 | K13: < 0.6 | L13: 0.1486111113 | M13: 0.1280416962 | N13: 3 | O13: positive | P13: 0.445833334 | Q13: 0.3841250887 | R13: 0.04918402791 | T13: =K64 -> 1.2-2 | U13: =O64 -> positive | V13: =SUM(P58:P64)/SUM(N58:N64) -> 0.1738347763 | W13: =SQRT(SUM(R58:R64)/SUM(N58:N64)) -> 0.13953 | X13: =SUM(N62:N64) -> 12
A14: 6 | B14: 2.1-5 | C14: 0.2238888889 | D14: 0.1996213736 | E14: 18 | F14: positive | J14: 31 | K14: < 0.6 | L14: 0.05 | M14: 0.03535533906 | N14: 2 | O14: positive | P14: 0.1 | Q14: 0.07071067812 | R14: 0.0025 | T14: =K71 -> 2.1-5 | U14: =O71 -> negative | V14: =SUM(P65:P71)/SUM(N65:N71) -> -0.2816423854 | W14: =SQRT(SUM(R65:R71)/SUM(N65:N71)) -> 0.19710 | X14: =SUM(N69:N71) -> 13
A15: 6 | B15: 2.1-5 | C15: 0 | D15: 0 | E15: 2 | F15: no-growth | J15: 15 | K15: > 5 | L15: -1.325 | M15: 0 | N15: 1 | O15: negative | P15: -1.325 | Q15: 0 | R15: 0 | T15: =K76 -> 2.1-5 | U15: =O76 -> no-growth | V15: =SUM(P72:P76)/SUM(N72:N76) -> 0 | W15: =SQRT(SUM(R72:R76)/SUM(N72:N76)) -> 0.00000 | X15: =SUM(N74:N76) -> 10
A16: 11 | B16: 1 pol | C16: 0 | D16: NA | E16: 1 | F16: no-growth | J16: 20 | K16: > 5 | L16: -0.6066666667 | M16: 0.3511884584 | N16: 3 | O16: negative | P16: -1.82 | Q16: 1.053565375 | R16: 0.37 | T16: =K83 -> 2.1-5 | U16: =O83 -> positive | V16: =SUM(P77:P83)/SUM(N77:N83) -> 0.2257524655 | W16: =SQRT(SUM(R77:R83)/SUM(N77:N83)) -> 0.16495 | X16: =SUM(N81:N83) -> 20
A17: 11 | B17: < 0.6 | C17: -0.0245454545 | D17: 0.02185602785 | E17: 2 | F17: negative | J17: 23 | K17: > 5 | L17: -1.432352941 | M17: 1.651302307 | N17: 2 | O17: negative | P17: -2.864705882 | Q17: 3.302604614 | R17: 5.453598618 | T17: =K17 -> > 5 | U17: =O17 -> negative | V17: =SUM(P15:P17)/SUM(N15:N17) -> -1.001617647 | W17: =SQRT(SUM(R15:R17)/SUM(N15:N17)) -> 0.98519 | X17: =SUM(N15:N17) -> 6
A18: 11 | B18: < 0.6 | C18: 0.1511515151 | D18: 0.1807656113 | E18: 15 | F18: positive | J18: 15 | K18: > 5 | L18: 0 | M18: 0 | N18: 2 | O18: no-growth | P18: 0 | Q18: 0 | R18: 0 | T18: =K19 -> > 5 | U18: =O19 -> no-growth | V18: =SUM(P17:P19)/SUM(N17:N19) -> -0.5729411764 | W18: =SQRT(SUM(R17:R19)/SUM(N17:N19)) -> 1.04438 | X18: =SUM(N17:N19) -> 5
A19: 11 | B19: < 0.6 | C19: 0 | D19: 0 | E19: 4 | F19: no-growth | J19: 20 | K19: > 5 | L19: 0 | M19: 0 | N19: 1 | O19: no-growth | P19: 0 | Q19: 0 | R19: 0 | T19: =K25 -> > 5 | U19: =O25 -> positive | V19: =SUM(P23:P25)/SUM(N23:N25) -> 0.6858333333 | W19: =SQRT(SUM(R23:R25)/SUM(N23:N25)) -> 0.68000 | X19: =SUM(N23:N25) -> 4
A20: 11 | B20: 0.6-1.1 | C20: -0.05590909087 | D20: 0.02342059366 | E20: 8 | F20: negative | J20: 11 | K20: > 5 | L20: 0.12 | M20: 0 | N20: 1 | O20: positive | P20: 0.12 | Q20: 0 | R20: 0
A21: 11 | B21: 0.6-1.1 | C21: 0.1100757576 | D21: 0.1115596538 | E21: 24 | F21: positive | J21: 15 | K21: > 5 | L21: 0.375 | M21: 0 | N21: 1 | O21: positive | P21: =L21*N21 -> 0.375 | Q21: =M21*N21 -> 0 | R21: =Q21*M21 -> 0
A22: 11 | B22: 0.6-1.1 | C22: 0 | D22: 0 | E22: 11 | F22: no-growth | J22: 20 | K22: > 5 | L22: 0.16 | M22: 0 | N22: 1 | O22: positive | P22: 0.16 | Q22: 0 | R22: 0
A23: 11 | B23: 1.2-2 | C23: -0.08875000006 | D23: 0.05680654425 | E23: 16 | F23: negative | J23: 23 | K23: > 5 | L23: 0.133333333 | M23: 0 | N23: 1 | O23: positive | P23: 0.133333333 | Q23: 0 | R23: 0
A24: 11 | B24: 1.2-2 | C24: 0.1268531468 | D24: 0.117027354 | E24: 13 | F24: positive | J24: 31 | K24: > 5 | L24: 0.45 | M24: 0 | N24: 1 | O24: positive | P24: 0.45 | Q24: 0 | R24: 0
A25: 11 | B25: 1.2-2 | C25: 0 | D25: 0 | E25: 2 | F25: no-growth | J25: 36 | K25: > 5 | L25: 1.08 | M25: 0.9616652224 | N25: 2 | O25: positive | P25: 2.16 | Q25: 1.923330445 | R25: 1.8496
A26: 11 | B26: 2.1-5 | C26: -0.2459393939 | D26: 0.1278215748 | E26: 15 | F26: negative | J26: 6 | K26: 0.6-1.1 | L26: -0.051 | M26: 0.03281259921 | N26: 10 | O26: negative | P26: -0.51 | Q26: 0.3281259921 | R26: 0.01076666667
A27: 11 | B27: 2.1-5 | C27: 0.234 | D27: 0.1355068458 | E27: 20 | F27: positive | J27: 11 | K27: 0.6-1.1 | L27: -0.05590909087 | M27: 0.02342059366 | N27: 8 | O27: negative | P27: -0.447272727 | Q27: 0.1873647492 | R27: 0.004388193658
A28: 11 | B28: 2.1-5 | C28: 0 | D28: 0 | E28: 3 | F28: no-growth | J28: 15 | K28: 0.6-1.1 | L28: -0.08 | M28: 0.03259601203 | N28: 5 | O28: negative | P28: -0.4 | Q28: 0.1629800601 | R28: 0.0053125
A29: 11 | B29: > 5 | C29: 0.12 | D29: NA | E29: 1 | F29: positive | J29: 20 | K29: 0.6-1.1 | L29: -0.06 | M29: 0.02828427125 | N29: 2 | O29: negative | P29: -0.12 | Q29: 0.05656854249 | R29: 0.0016
A30: 15 | B30: < 0.6 | C30: 0.1 | D30: NA | E30: 1 | F30: positive | J30: 23 | K30: 0.6-1.1 | L30: -0.116666667 | M30: 0.07071067812 | N30: 2 | O30: negative | P30: -0.233333334 | Q30: 0.1414213562 | R30: 0.01
A31: 15 | B31: < 0.6 | C31: 0 | D31: 0 | E31: 4 | F31: no-growth | J31: 6 | K31: 0.6-1.1 | L31: 0 | M31: 0 | N31: 8 | O31: no-growth | P31: 0 | Q31: 0 | R31: 0
A32: 15 | B32: 0.6-1.1 | C32: -0.08 | D32: 0.03259601203 | E32: 5 | F32: negative | J32: 11 | K32: 0.6-1.1 | L32: 0 | M32: 0 | N32: 11 | O32: no-growth | P32: 0 | Q32: 0 | R32: 0
A33: 15 | B33: 0.6-1.1 | C33: 0.28125 | D33: 0.1231107225 | E33: 4 | F33: positive | J33: 15 | K33: 0.6-1.1 | L33: 0 | M33: 0 | N33: 12 | O33: no-growth | P33: 0 | Q33: 0 | R33: 0
A34: 15 | B34: 0.6-1.1 | C34: 0 | D34: 0 | E34: 12 | F34: no-growth | J34: 20 | K34: 0.6-1.1 | L34: 0 | M34: 0 | N34: 2 | O34: no-growth | P34: 0 | Q34: 0 | R34: 0
A35: 15 | B35: 1.2-2 | C35: -0.05 | D35: 0.03535533906 | E35: 2 | F35: negative | J35: 23 | K35: 0.6-1.1 | L35: 0 | M35: 0 | N35: 1 | O35: no-growth | P35: 0 | Q35: 0 | R35: 0
A36: 15 | B36: 1.2-2 | C36: 0.1541666667 | D36: 0.09671694095 | E36: 6 | F36: positive | J36: 31 | K36: 0.6-1.1 | L36: 0 | M36: 0 | N36: 1 | O36: no-growth | P36: 0 | Q36: 0 | R36: 0
A37: 15 | B37: 1.2-2 | C37: 0 | D37: 0 | E37: 10 | F37: no-growth | J37: 36 | K37: 0.6-1.1 | L37: 0 | M37: 0 | N37: 1 | O37: no-growth | P37: 0 | Q37: 0 | R37: 0
A38: 15 | B38: 2.1-5 | C38: -0.3958333333 | D38: 0.2277150998 | E38: 6 | F38: negative | J38: 6 | K38: 0.6-1.1 | L38: 0.1182352941 | M38: 0.1144680793 | N38: 17 | O38: positive | P38: 2.01 | Q38: 1.945957348 | R38: 0.22275
A39: 15 | B39: 2.1-5 | C39: 0.3625 | D39: 0.171391365 | E39: 4 | F39: positive | J39: 11 | K39: 0.6-1.1 | L39: 0.1100757576 | M39: 0.1115596538 | N39: 24 | O39: positive | P39: 2.641818182 | Q39: 2.677431691 | R39: 0.2986933525
A40: 15 | B40: 2.1-5 | C40: 0 | D40: 0 | E40: 8 | F40: no-growth | J40: 15 | K40: 0.6-1.1 | L40: 0.28125 | M40: 0.1231107225 | N40: 4 | O40: positive | P40: 1.125 | Q40: 0.4924428901 | R40: 0.060625
A41: 15 | B41: > 5 | C41: -1.325 | D41: NA | E41: 1 | F41: negative | J41: 20 | K41: 0.6-1.1 | L41: 0.15 | M41: 0.0886942313 | N41: 4 | O41: positive | P41: 0.6 | Q41: 0.3547769252 | R41: 0.03146666667
A42: 15 | B42: > 5 | C42: 0.375 | D42: NA | E42: 1 | F42: positive | J42: 23 | K42: 0.6-1.1 | L42: 0.1 | M42: 0.066666667 | N42: 3 | O42: positive | P42: 0.3 | Q42: 0.200000001 | R42: 0.01333333347
A43: 15 | B43: > 5 | C43: 0 | D43: 0 | E43: 2 | F43: no-growth | J43: 31 | K43: 0.6-1.1 | L43: 0.0625 | M43: 0.05303300859 | N43: 2 | O43: positive | P43: 0.125 | Q43: 0.1060660172 | R43: 0.005625
A44: 20 | B44: < 0.6 | C44: 0.09 | D44: 0.05033222957 | E44: 4 | F44: positive | J44: 36 | K44: 0.6-1.1 | L44: 0.22 | M44: 0 | N44: 1 | O44: positive | P44: 0.22 | Q44: 0 | R44: 0
A45: 20 | B45: 0.6-1.1 | C45: -0.06 | D45: 0.02828427125 | E45: 2 | F45: negative | J45: 11 | K45: 1 pol | L45: 0 | M45: 0 | N45: 1 | O45: no-growth | P45: 0 | Q45: 0 | R45: 0
A46: 20 | B46: 0.6-1.1 | C46: 0.15 | D46: 0.0886942313 | E46: 4 | F46: positive | J46: 6 | K46: 1 pol | L46: 0.02 | M46: 0 | N46: 1 | O46: positive | P46: 0.02 | Q46: 0 | R46: 0
A47: 20 | B47: 0.6-1.1 | C47: 0 | D47: 0 | E47: 2 | F47: no-growth | J47: 6 | K47: 1.2-2 | L47: -0.09214285714 | M47: 0.05493752696 | N47: 14 | O47: negative | P47: -1.29 | Q47: 0.7691253774 | R47: 0.04225384615
A48: 20 | B48: 1.2-2 | C48: -0.145 | D48: 0.1619670748 | E48: 4 | F48: negative | J48: 11 | K48: 1.2-2 | L48: -0.08875000006 | M48: 0.05680654425 | N48: 16 | O48: negative | P48: -1.420000001 | Q48: 0.908904708 | R48: 0.05163173552
A49: 20 | B49: 1.2-2 | C49: 0.156 | D49: 0.1409964539 | E49: 5 | F49: positive | J49: 15 | K49: 1.2-2 | L49: -0.05 | M49: 0.03535533906 | N49: 2 | O49: negative | P49: -0.1 | Q49: 0.07071067812 | R49: 0.0025
A50: 20 | B50: 1.2-2 | C50: 0 | D50: 0 | E50: 2 | F50: no-growth | J50: 20 | K50: 1.2-2 | L50: -0.145 | M50: 0.1619670748 | N50: 4 | O50: negative | P50: -0.58 | Q50: 0.6478682994 | R50: 0.1049333333
A51: 20 | B51: 2.1-5 | C51: -0.285 | D51: 0.2321944998 | E51: 8 | F51: negative | J51: 23 | K51: 1.2-2 | L51: -0.233333333 | M51: 0 | N51: 2 | O51: negative | P51: -0.466666666 | Q51: 0 | R51: 0
A52: 20 | B52: 2.1-5 | C52: 0.2333333333 | D52: 0.09865765725 | E52: 3 | F52: positive | J52: 31 | K52: 1.2-2 | L52: -0.0125 | M52: 0 | N52: 1 | O52: negative | P52: -0.0125 | Q52: 0 | R52: 0
A53: 20 | B53: 2.1-5 | C53: 0 | D53: NA | E53: 1 | F53: no-growth | J53: 36 | K53: 1.2-2 | L53: -0.1 | M53: 0.08485281374 | N53: 2 | O53: negative | P53: -0.2 | Q53: 0.1697056275 | R53: 0.0144
A54: 20 | B54: > 5 | C54: -0.6066666667 | D54: 0.3511884584 | E54: 3 | F54: negative | J54: 6 | K54: 1.2-2 | L54: 0 | M54: 0 | N54: 4 | O54: no-growth | P54: 0 | Q54: 0 | R54: 0
A55: 20 | B55: > 5 | C55: 0.16 | D55: NA | E55: 1 | F55: positive | J55: 11 | K55: 1.2-2 | L55: 0 | M55: 0 | N55: 2 | O55: no-growth | P55: 0 | Q55: 0 | R55: 0
A56: 20 | B56: > 5 | C56: 0 | D56: NA | E56: 1 | F56: no-growth | J56: 15 | K56: 1.2-2 | L56: 0 | M56: 0 | N56: 10 | O56: no-growth | P56: 0 | Q56: 0 | R56: 0
A57: 23 | B57: < 0.6 | C57: -0.033333333 | D57: NA | E57: 1 | F57: negative | J57: 20 | K57: 1.2-2 | L57: 0 | M57: 0 | N57: 2 | O57: no-growth | P57: 0 | Q57: 0 | R57: 0
A58: 23 | B58: < 0.6 | C58: 0.1486111113 | D58: 0.1280416962 | E58: 3 | F58: positive | J58: 6 | K58: 1.2-2 | L58: 0.1840740741 | M58: 0.1281603341 | N58: 27 | O58: positive | P58: 4.97 | Q58: 3.460329019 | R58: 0.4434769231
A59: 23 | B59: 0.6-1.1 | C59: -0.116666667 | D59: 0.07071067812 | E59: 2 | F59: negative | J59: 11 | K59: 1.2-2 | L59: 0.1268531468 | M59: 0.117027354 | N59: 13 | O59: positive | P59: 1.649090909 | Q59: 1.521355602 | R59: 0.1780402205
A60: 23 | B60: 0.6-1.1 | C60: 0.1 | D60: 0.066666667 | E60: 3 | F60: positive | J60: 15 | K60: 1.2-2 | L60: 0.1541666667 | M60: 0.09671694095 | N60: 6 | O60: positive | P60: 0.925 | Q60: 0.5803016457 | R60: 0.056125
A61: 23 | B61: 0.6-1.1 | C61: 0 | D61: NA | E61: 1 | F61: no-growth | J61: 20 | K61: 1.2-2 | L61: 0.156 | M61: 0.1409964539 | N61: 5 | O61: positive | P61: 0.78 | Q61: 0.7049822693 | R61: 0.0994
A62: 23 | B62: 1.2-2 | C62: -0.233333333 | D62: 0 | E62: 2 | F62: negative | J62: 23 | K62: 1.2-2 | L62: 0.2714285713 | M62: 0.194772965 | N62: 7 | O62: positive | P62: 1.899999999 | Q62: 1.363410755 | R62: 0.2655555552
A63: 23 | B63: 1.2-2 | C63: 0.2714285713 | D63: 0.194772965 | E63: 7 | F63: positive | J63: 31 | K63: 1.2-2 | L63: 0.0625 | M63: 0.05 | N63: 3 | O63: positive | P63: 0.1875 | Q63: 0.15 | R63: 0.0075
A64: 23 | B64: 2.1-5 | C64: -0.4416666667 | D64: 0.4040306183 | E64: 4 | F64: negative | J64: 36 | K64: 1.2-2 | L64: 0.27 | M64: 0.2969848481 | N64: 2 | O64: positive | P64: 0.54 | Q64: 0.5939696962 | R64: 0.1764
A65: 23 | B65: 2.1-5 | C65: 0.2041666666 | D65: 0.1407885954 | E65: 8 | F65: positive | J65: 6 | K65: 2.1-5 | L65: -0.3133333333 | M65: 0.1402378931 | N65: 6 | O65: negative | P65: -1.88 | Q65: 0.8414273587 | R65: 0.118
A66: 23 | B66: 2.1-5 | C66: 0 | D66: NA | E66: 1 | F66: no-growth | J66: 11 | K66: 2.1-5 | L66: -0.2459393939 | M66: 0.1278215748 | N66: 15 | O66: negative | P66: -3.689090909 | Q66: 1.917323622 | R66: 0.2450753247
A67: 23 | B67: > 5 | C67: -1.432352941 | D67: 1.651302307 | E67: 2 | F67: negative | J67: 15 | K67: 2.1-5 | L67: -0.3958333333 | M67: 0.2277150998 | N67: 6 | O67: negative | P67: -2.375 | Q67: 1.366290599 | R67: 0.311125
A68: 23 | B68: > 5 | C68: 0.133333333 | D68: NA | E68: 1 | F68: positive | J68: 20 | K68: 2.1-5 | L68: -0.285 | M68: 0.2321944998 | N68: 8 | O68: negative | P68: -2.28 | Q68: 1.857555998 | R68: 0.4313142857
A69: 31 | B69: < 0.6 | C69: 0.05 | D69: 0.03535533906 | E69: 2 | F69: positive | J69: 23 | K69: 2.1-5 | L69: -0.4416666667 | M69: 0.4040306183 | N69: 4 | O69: negative | P69: -1.766666667 | Q69: 1.616122473 | R69: 0.6529629621
A70: 31 | B70: 0.6-1.1 | C70: 0.0625 | D70: 0.05303300859 | E70: 2 | F70: positive | J70: 31 | K70: 2.1-5 | L70: -0.1875 | M70: 0.1294217911 | N70: 6 | O70: negative | P70: -1.125 | Q70: 0.7765307463 | R70: 0.1005
A71: 31 | B71: 0.6-1.1 | C71: 0 | D71: NA | E71: 1 | F71: no-growth | J71: 36 | K71: 2.1-5 | L71: -0.1343589743 | M71: 0.04395622724 | N71: 3 | O71: negative | P71: -0.403076923 | Q71: 0.1318686817 | R71: 0.00579644974
A72: 31 | B72: 1.2-2 | C72: -0.0125 | D72: NA | E72: 1 | F72: negative | J72: 6 | K72: 2.1-5 | L72: 0 | M72: 0 | N72: 2 | O72: no-growth | P72: 0 | Q72: 0 | R72: 0
A73: 31 | B73: 1.2-2 | C73: 0.0625 | D73: 0.05 | E73: 3 | F73: positive | J73: 11 | K73: 2.1-5 | L73: 0 | M73: 0 | N73: 3 | O73: no-growth | P73: 0 | Q73: 0 | R73: 0
A74: 31 | B74: 2.1-5 | C74: -0.1875 | D74: 0.1294217911 | E74: 6 | F74: negative | J74: 15 | K74: 2.1-5 | L74: 0 | M74: 0 | N74: 8 | O74: no-growth | P74: 0 | Q74: 0 | R74: 0
A75: 31 | B75: 2.1-5 | C75: 0.1895833333 | D75: 0.2312218451 | E75: 6 | F75: positive | J75: 20 | K75: 2.1-5 | L75: 0 | M75: 0 | N75: 1 | O75: no-growth | P75: 0 | Q75: 0 | R75: 0
A76: 31 | B76: > 5 | C76: 0.45 | D76: NA | E76: 1 | F76: positive | J76: 23 | K76: 2.1-5 | L76: 0 | M76: 0 | N76: 1 | O76: no-growth | P76: 0 | Q76: 0 | R76: 0
A77: 36 | B77: 0.6-1.1 | C77: 0.22 | D77: NA | E77: 1 | F77: positive | J77: 6 | K77: 2.1-5 | L77: 0.2238888889 | M77: 0.1996213736 | N77: 18 | O77: positive | P77: 4.03 | Q77: 3.593184725 | R77: 0.7172764706
A78: 36 | B78: 0.6-1.1 | C78: 0 | D78: NA | E78: 1 | F78: no-growth | J78: 11 | K78: 2.1-5 | L78: 0.234 | M78: 0.1355068458 | N78: 20 | O78: positive | P78: 4.68 | Q78: 2.710136916 | R78: 0.3672421053
A79: 36 | B79: 1.2-2 | C79: -0.1 | D79: 0.08485281374 | E79: 2 | F79: negative | J79: 15 | K79: 2.1-5 | L79: 0.3625 | M79: 0.171391365 | N79: 4 | O79: positive | P79: 1.45 | Q79: 0.68556546 | R79: 0.1175
A80: 36 | B80: 1.2-2 | C80: 0.27 | D80: 0.2969848481 | E80: 2 | F80: positive | J80: 20 | K80: 2.1-5 | L80: 0.2333333333 | M80: 0.09865765725 | N80: 3 | O80: positive | P80: 0.7 | Q80: 0.2959729717 | R80: 0.0292
A81: 36 | B81: 2.1-5 | C81: -0.1343589743 | D81: 0.04395622724 | E81: 3 | F81: negative | J81: 23 | K81: 2.1-5 | L81: 0.2041666666 | M81: 0.1407885954 | N81: 8 | O81: positive | P81: 1.633333333 | Q81: 1.126308763 | R81: 0.1585714288
A82: 36 | B82: 2.1-5 | C82: 0.1738461538 | D82: 0.09838458534 | E82: 6 | F82: positive | J82: 31 | K82: 2.1-5 | L82: 0.1895833333 | M82: 0.2312218451 | N82: 6 | O82: positive | P82: 1.1375 | Q82: 1.387331071 | R82: 0.32078125
A83: 36 | B83: > 5 | C83: 1.08 | D83: 0.9616652224 | E83: 2 | F83: positive | J83: 36 | K83: 2.1-5 | L83: 0.1738461538 | M83: 0.09838458534 | N83: 6 | O83: positive | P83: 1.043076923 | Q83: 0.590307512 | R83: 0.05807715979

Sheet Recruit survival model
P1: Survival (per 6 months) | R1: initial size class | S1: final size class | T1: # of 0.1 cm intervals | U1: bottom of source interval | V1: destination interval | X1: Mean Growth | Y1: Std Dev | Z1: N | AA1: change x survival | AB1: proportion changing | AC1: proportion in growth class | AD1: P[change class]
O2: < 0.6 | P2: =[1]overall!$Z$18 -> 0.586 | AE2: 0 | AF2: 0.1 | AG2: 0.2 | AH2: 0.3 | AI2: 0.4 | AJ2: 0.5 | AK2: 0.6 | AL2: 0.7 | AM2: 0.8 | AN2: 0.9 | AO2: 1 | AP2: 1.1 | AQ2: 1.2 | AR2: 1.3 | AS2: 1.4 | AT2: 1.5 | AU2: 1.6 | AV2: 1.7 | AW2: 1.8 | AX2: 1.9 | AY2: 2 | AZ2: 2.1 | BA2: 2.2 | BB2: 2.3 | BC2: 2.4 | BD2: 2.5 | BE2: 2.6 | BF2: 2.7 | BG2: 2.8 | BH2: 2.9 | BI2: 3 | BJ2: 3.1 | BK2: 3.2 | BL2: 3.3 | BM2: 3.4 | BN2: 3.5 | BO2: 3.6 | BP2: 3.7 | BQ2: 3.8 | BR2: 3.9 | BS2: 4
H3: 1 | I3: 2 | J3: 3 | K3: 4 | L3: 5 | O3: 0.6 - 1 | P3: =[1]overall!$Z$19 -> 0.622
H4: =O2 -> < 0.6 | I4: =O3 -> 0.6 - 1 | J4: =O4 -> 1.1 - 2 | K4: =O5 -> 2.1 - 5 | L4: >5 | N4: =EXP(X4) -> 1 | O4: 1.1 - 2 | P4: =[1]overall!$Z$20 -> 0.676 | R4: 1 | S4: 1 | T4: 3 | U4: 0.3 | V4: 0.5 | W4: < 0.6 | Z4: =GETPIVOTDATA("growth_rate",'[1]Growth rates'!$B$63,"Previous Size Class",1,"event2","shrink") -> 5 | AC4: =Z4/(Z4+Z5+Z6) -> 0.066
G5: =O2 -> < 0.6 | H5: =AA4+AA5 -> 0.417 | I5: =AA10 -> 0.072 | J5: =AA15 -> 0.024 | K5: =AA20 -> 0.031 | L5: 0 | N5: =EXP(X5) -> 1 | O5: 2.1 - 5 | P5: =[1]overall!$Z$21 -> 0.79 | R5: 1 | S5: 1 | T5: 3 | U5: 0.3 | V5: 0.5 | W5: < 0.6 | X5: 0 | Y5: 0 | Z5: =GETPIVOTDATA("growth_rate",'[1]Growth rates'!$B$63,"Previous Size Class",1,"event2","no-growth") -> 16 | AA5: =AB5*P$2 -> 0.417 | AB5: =AC4+AC5+AC6*(1-AD6-AD7-AD8-AD9) -> 0.711 | AC5: =Z5/(Z5+Z4+Z6) -> 0.211 | AD5: 1.000
G6: =O3 -> 0.6 - 1 | H6: =AA6 -> 0.095 | I6: =AA11 -> 0.374 | J6: =AA16 -> 0.099 | K6: =AA21 -> 0.024 | L6: 0 | O6: >5 | P6: 1 | R6: 1 | S6: 2 | T6: 3 | U6: 0.3 | V6: 0.6 | W6: < 0.6 | X6: ='[1]distribution-fitting'!$BA$71 -> -2.466783552 | Y6: ='[1]distribution-fitting'!$BA$72 -> 0.8778735801 | Z6: =GETPIVOTDATA("growth_rate",'[1]Growth rates'!$B$63,"Previous Size Class",1,"event2","growth") -> 55 | AA6: =AB6*P$2 -> 0.095 | AB6: =AC6*AD6 -> 0.162 | AC6: =Z6/(Z6+Z4+Z5) -> 0.724 | AD6: =SUM(AE6:AG6)/T6-AD7-AD8-AD9 -> 0.224 | AE6: =(1-_xlfn.NORM.DIST(LN($V6),LN($U6+AE$2+EXP($X6)),$Y6,TRUE)) -> 0.3064871622 | AF6: =(1-_xlfn.NORM.DIST(LN($V6),LN($U6+AF$2+EXP($X6)),$Y6,TRUE)) -> 0.404112288 | AG6: 0.4883853562
G7: =O4 -> 1.1 - 2 | H7: =AA7 -> 0.054 | I7: =AA12 -> 0.084 | J7: =AA17 -> 0.356 | K7: =AA22 -> 0.059 | L7: 0 | R7: 1 | S7: 3 | T7: 3 | U7: 0.3 | V7: 1.1 | X7: =X6 -> -2.466783552 | Y7: =Y6 -> 0.8778735801 | Z7: =Z6 -> 55 | AA7: =AB7*P$2 -> 0.054 | AB7: =AC7*AD7 -> 0.092 | AC7: =AC6 -> 0.724 | AD7: =SUM(AE7:AJ7)/T7-AD8-AD9 -> 0.127 | AE7: =(1-_xlfn.NORM.DIST(LN($V7),LN($U7+AE$2+EXP($X7)),$Y7,TRUE)) -> 0.1157914156 | AF7: 0.1753645054 | AG7: 0.2358927971
G8: =O5 -> 2.1 - 5 | H8: =AA8 -> 0.019 | I8: =AA13 -> 0.076 | J8: =AA18 -> 0.146 | K8: =AA23 -> 0.469 | L8: 0 | P8: Growth rates | R8: 1 | S8: 4 | T8: 3 | U8: 0.3 | V8: 2.1 | X8: =X6 -> -2.466783552 | Y8: =Y6 -> 0.8778735801 | Z8: =Z7 -> 55 | AA8: =AB8*P$2 -> 0.019 | AB8: =AC8*AD8 -> 0.032 | AC8: =AC6 -> 0.724 | AD8: =SUM(AE8:AJ8)/T8-AD9 -> 0.045 | AE8: =(1-_xlfn.NORM.DIST(LN($V8),LN($U8+AE$2+EXP($X8)),$Y8,TRUE)) -> 0.02662580223 | AF8: 0.04748346357 | AG8: 0.07267415885
G9: =O6 -> >5 | H9: =AA9 -> 0.002 | I9: =AA14 -> 0.016 | J9: =AA19 -> 0.051 | K9: =AA24 -> 0.207 | L9: 1 | R9: 1 | S9: 5 | T9: 3 | U9: 0.3 | V9: 5 | X9: =X6 -> -2.466783552 | Y9: =Y6 -> 0.8778735801 | Z9: 55 | AA9: =AB9*P$2 -> 0.002 | AB9: =AC9*AD9 -> 0.003 | AC9: =AC6 -> 0.724 | AD9: =SUM(AE9:AG9)/T9 -> 0.004 | AE9: =(1-_xlfn.NORM.DIST(LN($V9),LN($U9+AE$2+EXP($X9)),$Y9,TRUE)) -> 0.001744219441 | AF9: 0.003930952657 | AG9: 0.00725578696
P10: =EXP(X9) -> 0.08 | R10: 2 | S10: 1 | T10: 6 | U10: 0.6 | V10: 0.5 | W10: 0.6-1.1 | X10: ='[1]distribution-fitting'!$BF$96 -> -1.090277669 | Y10: ='[1]distribution-fitting'!$BF$97 -> 0.514055208 | Z10: =GETPIVOTDATA("growth_rate",'[1]Growth rates'!$B$63,"Previous Size Class",2,"event2","shrink") -> 27 | AA10: =AB10*P$3 -> 0.072 | AB10: =AC10*AD10 -> 0.116 | AC10: =Z10/(Z10+Z11+Z12) -> 0.221 | AD10: =SUM(AE10:AJ10)/T10 -> 0.523 | AE10: =(1-_xlfn.NORM.DIST(LN($U10+AE$2-$V10),$X10,$Y10,TRUE)) -> 0.9908211057 | AF10: =(1-_xlfn.NORM.DIST(LN($U10+AF$2-$V10),$X10,$Y10,TRUE)) -> 0.8437358037 | AG10: 0.5875211366 | AH10: 0.3675084213 | AI10: 0.2198960211 | AJ10: 0.1298252591
H11: =SUM(H5:H9) -> 0.59 | I11: =SUM(I5:I9) -> 0.62 | J11: =SUM(J5:J9) -> 0.68 | K11: =SUM(K5:K9) -> 0.79 | L11: =SUM(L5:L9) -> 1.00 | P11: =-EXP(X10) -> -0.34 | R11: 2 | S11: 2 | T11: 6 | U11: 0.6 | V11: 1.1 | W11: 0.6-1.1 | Z11: =GETPIVOTDATA("growth_rate",'[1]Growth rates'!$B$63,"Previous Size Class",2,"event2","no-growth") -> 35 | AA11: =AB11*P$3 -> 0.374 | AB11: =AC11+AC10*(1-AD10)+AC12*(1-AD12-AD13-AD14) -> 0.601 | AC11: =Z11/(Z11+Z10+Z14) -> 0.287 | AD11: 1.000
P12: 0.00 | R12: 2 | S12: 3 | T12: 6 | U12: 0.6 | V12: 1.2 | W12: 0.6-1.1 | X12: ='[1]distribution-fitting'!$AZ$96 -> -0.5909312185 | Y12: ='[1]distribution-fitting'!$AZ$97 -> 0.7753118061 | Z12: =GETPIVOTDATA("growth_rate",'[1]Growth rates'!$B$63,"Previous Size Class",2,"event2","growth") -> 60 | AA12: =AB12*P$3 -> 0.084 | AB12: =AC12*AD12 -> 0.135 | AC12: =Z12/(Z12+Z10+Z11) -> 0.492 | AD12: =SUM(AE12:AJ12)/T12-AD13-AD14 -> 0.275 | AE12: =(1-_xlfn.NORM.DIST(LN($V12),LN($U12+AE$2+EXP($X12)),$Y12,TRUE)) -> 0.4798117912 | AF12: 0.5225597435 | AG12: 0.5618074065 | AH12: 0.5977280657 | AI12: 0.6305352988 | AJ12: 0.6604599201
P13: =EXP(X12) -> 0.55 | R13: 2 | S13: 4 | T13: 6 | U13: 0.6 | V13: 2.1 | W13: 0.6-1.1 | X13: =X12 -> -0.5909312185 | Y13: =Y12 -> 0.7753118061 | Z13: =Z12 -> 60 | AA13: =AB13*P$3 -> 0.076 | AB13: =AC13*AD13 -> 0.122 | AC13: =AC12 -> 0.492 | AD13: =SUM(AE13:AJ13)/T13-AD14 -> 0.249 | AE13: 0.2199327258 | AF13: 0.2529563581 | AG13: 0.285614896 | AH13: 0.3176345596 | AI13: 0.3488144975 | AJ13: 0.379012317
P14: =-EXP(X16) -> -0.46 | R14: 2 | S14: 5 | T14: 6 | U14: 0.6 | V14: 5 | W14: 0.6-1.1 | X14: =X12 -> -0.5909312185 | Y14: =Y12 -> 0.7753118061 | Z14: =Z12 -> 60 | AA14: =AB14*P$3 -> 0.016 | AB14: =AC14*AD14 -> 0.025 | AC14: =AC12 -> 0.492 | AD14: =SUM(AE14:AJ14)/T14 -> 0.052 | AE14: 0.02929043059 | AF14: 0.03720201694 | AG14: 0.04598014043 | AH14: 0.05555440653 | AI14: 0.06585043447 | AJ14: 0.0767926526
P15: 0.00 | R15: 3 | S15: 1 | T15: 9 | U15: 1.2 | V15: 0.5 | W15: 1.2-2 | X15: ='[1]distribution-fitting'!$BF$134 -> -0.7687765101 | Y15: ='[1]distribution-fitting'!$BF$135 -> 0.6038156724 | Z15: =GETPIVOTDATA("growth_rate",'[1]Growth rates'!$B$63,"Previous Size Class",3,"event2","shrink") -> 40 | AA15: =AB15*P$4 -> 0.024 | AB15: =AC15*AD15 -> 0.036 | AC15: =Z15/(Z15+Z18+Z17) -> 0.354 | AD15: =SUM(AE15:AM15)/T15 -> 0.101 | AE15: =(1-_xlfn.NORM.DIST(LN($U15+AE$2-$V15),$X15,$Y15,TRUE)) -> 0.2474627981 | AF15: 0.1830927383 | AG15: 0.135948129 | AH15: 0.1014740115 | AI15: 0.07620882755 | AJ15: 0.05761133098 | AK15: 0.04384528075 | AL15: 0.03359203758 | AM15: 0.02590542012
P16: =EXP(X18) -> 0.87 | R16: 3 | S16: 2 | T16: 9 | U16: 1.2 | V16: 1.1 | W16: 1.2-2 | X16: =X15 -> -0.7687765101 | Y16: =Y15 -> 0.6038156724 | Z16: =Z15 -> 40 | AA16: =AB16*P$4 -> 0.099 | AB16: =AC16*AD16 -> 0.146 | AC16: =AC15 -> 0.354 | AD16: =SUM(AE16:AM16)/T16-AD15 -> 0.413 | AE16: 0.9944604407 | AF16: 0.9180764042 | AG16: 0.7644663656 | AH16: 0.5965020748 | AI16: 0.4501618887 | AJ16: 0.3346163295 | AK16: 0.2474627981 | AL16: 0.1830927383 | AM16: 0.135948129
C17: =T48 -> 5.086 | D17: proportion at size escape after 5 y | K17: =H6*I7*J8*K9 -> 0.0002423651933 | P17: =-EXP(X22) -> -1.32 | R17: 3 | S17: 3 | T17: 9 | U17: 1.2 | V17: 2 | W17: 1.2-2 | Z17: =GETPIVOTDATA("growth_rate",'[1]Growth rates'!$B$63,"Previous Size Class",3,"event2","no-growth") -> 17 | AA17: =AB17*P$4 -> 0.356 | AB17: =AC17+AC16*(1-AD16-AD15)+AC18*(1-AD18-AD19) -> 0.526 | AC17: =Z17/(Z17+Z18+Z16) -> 0.150 | AD17: 1.000
C18: =AF61/AF60 -> 2.951 | D18: =average age to grow to 5 cm | K18: =B6*B9*B12*B12*B15*B15*B15 -> 0 | P18: 0.00 | R18: 3 | S18: 4 | T18: 9 | U18: 1.2 | V18: 2.1 | W18: 1.2-2 | X18: ='[1]distribution-fitting'!$AZ$134 -> -0.1430242139 | Y18: ='[1]distribution-fitting'!$AZ$135 -> 0.6848619633 | Z18: =GETPIVOTDATA("growth_rate",'[1]Growth rates'!$B$63,"Previous Size Class",3,"event2","growth") -> 56 | AA18: =AB18*P$4 -> 0.146 | AB18: =AC18*AD18 -> 0.216 | AC18: =Z18/(Z18+Z16+Z17) -> 0.496 | AD18: =SUM(AE18:AM18)/T18-AD19 -> 0.437 | AE18: =(1-_xlfn.NORM.DIST(LN($V18),LN($U18+AE$2+EXP($X18)),$Y18,TRUE)) -> 0.4906991255 | AF18: =(1-_xlfn.NORM.DIST(LN($V18),LN($U18+AF$2+EXP($X18)),$Y18,TRUE)) -> 0.518216592 | AG18: 0.5444133218 | AH18: 0.5693009111 | AI18: 0.5929039802 | AJ18: 0.6152567901 | AK18: 0.6364005277 | AL18: 0.656381141 | AM18: 0.6752476289
P19: =EXP(X24) -> 1.14 | R19: 3 | S19: 5 | T19: 9 | U19: 1.2 | V19: 5 | W19: 1.2-2 | X19: =X18 -> -0.1430242139 | Y19: =Y18 -> 0.6848619633 | Z19: =Z18 -> 56 | AA19: =AB19*P$4 -> 0.051 | AB19: =AC19*AD19 -> 0.075 | AC19: =AC18 -> 0.496 | AD19: =SUM(AE19:AM19)/T19 -> 0.152 | AE19: =(1-_xlfn.NORM.DIST(LN($V19),LN($U19+AE$2+EXP($X19)),$Y19,TRUE)) -> 0.0985261299 | AF19: 0.1110427571 | AG19: 0.1240204839 | AH19: 0.1373979102 | AI19: 0.1511161957 | AJ19: 0.1651194741 | AK19: 0.1793551225 | AL19: 0.1937739151 | AM19: 0.2083300865
R20: 4 | S20: 1 | T20: 40 | U20: 2.1 | V20: 0.5 | W20: 2.1-5 | X20: ='[1]distribution-fitting'!$BF$176 -> 0.28 | Y20: ='[1]distribution-fitting'!$BF$177 -> 0.6411474797 | Z20: =GETPIVOTDATA("growth_rate",'[1]Growth rates'!$B$63,"Previous Size Class",4,"event2","shrink") -> 47 | AA20: =AB20*P$5 -> 0.031 | AB20: =AC20*AD20 -> 0.040 | AC20: =Z20/(Z20+Z24+Z23) -> 0.379 | AD20: =SUM(AE20:BS20)/T20 -> 0.105 | AE20: =(1-_xlfn.NORM.DIST(LN($U20+AE$2-$V20),$X20,$Y20,TRUE)) -> 0.3829316164 | AF20: 0.3474010242 | AG20: 0.3150816913 | AH20: 0.2857561245 | AI20: 0.2591953535 | AJ20: 0.2351699069 | AK20: 0.2134569484 | AL20: 0.1938446896 | AM20: 0.176134897 | AN20: 0.1601440888 | AO20: 0.1457038483 | AP20: 0.1326605581 | AQ20: 0.1208747695 | AR20: 0.1102203576 | AS20: 0.1005835646 | AT20: 0.091862002 | AU20: =(1-_xlfn.NORM.DIST(LN($U20+AU$2-$V20),$X20,$Y20,TRUE)) -> 0.08396365765 | AV20: 0.07680593671 | AW20: 0.07031475552 | AX20: 0.06442369726 | AY20: 0.05907323436 | AZ20: 0.05421001784 | BA20: 0.04978623228 | BB20: 0.04575901299 | BC20: 0.04208992139 | BD20: 0.03874447419 | BE20: 0.03569172179 | BF20: 0.03290387139 | BG20: 0.0303559505 | BH20: 0.02802550684 | BI20: 0.02589234072 | BJ20: 0.02393826677 | BK20: 0.02214690152 | BL20: 0.02050347429 | BM20: 0.01899465868 | BN20: 0.01760842242 | BO20: 0.01633389363 | BP20: 0.01516124147 | BQ20: 0.01408156981 | BR20: 0.01308682224 | BS20: 0.01216969732
R21: 4 | S21: 2 | T21: 40 | U21: 2.1 | V21: 1.1 | W21: 2.1-5 | X21: =X20 -> 0.279076141 | Y21: =Y20 -> 0.6411474797 | Z21: =Z20 -> 47 | AA21: =AB21*P$5 -> 0.024 | AB21: =AC21*AD21 -> 0.030 | AC21: =AC20 -> 0.379 | AD21: =SUM(AE21:BS21)/T21-AD20 -> 0.079 | AE21: =(1-_xlfn.NORM.DIST(LN($U21+AE$2-$V21),$X21,$Y21,TRUE)) -> 0.6683189657 | AF21: 0.6127985122 | AG21: 0.55997604 | AH21: 0.5103974818 | AI21: 0.4643339746 | AJ21: 0.4218631695 | AK21: 0.3829316164 | AL21: 0.3474010242 | AM21: 0.3150816913 | AN21: 0.2857561245 | AO21: 0.2591953535 | AP21: 0.2351699069 | AQ21: 0.2134569484 | AR21: 0.1938446896 | AS21: 0.176134897 | AT21: 0.1601440888 | AU21: 0.1457038483 | AV21: 0.1326605581 | AW21: 0.1208747695 | AX21: 0.1102203576 | AY21: 0.1005835646 | AZ21: 0.091862002 | BA21: 0.08396365765 | BB21: 0.07680593671 | BC21: 0.07031475552 | BD21: 0.06442369726 | BE21: 0.05907323436 | BF21: 0.05421001784 | BG21: 0.04978623228 | BH21: 0.04575901299 | BI21: 0.04208992139 | BJ21: 0.03874447419 | BK21: 0.03569172179 | BL21: 0.03290387139 | BM21: 0.0303559505 | BN21: 0.02802550684 | BO21: 0.02589234072 | BP21: 0.02393826677 | BQ21: 0.02214690152 | BR21: 0.02050347429 | BS21: 0.01899465868
H22: Empiriical Matrix | R22: 4 | S22: 3 | T22: 40 | U22: 2.1 | V22: 2 | W22: 2.1-5 | X22: =X20 -> 0.279076141 | Y22: =Y20 -> 0.6411474797 | Z22: =Z20 -> 47 | AA22: =AB22*P$5 -> 0.059 | AB22: =AC22*AD22 -> 0.075 | AC22: =AC20 -> 0.379 | AD22: =SUM(AE22:BS22)/T22-AD21-AD20 -> 0.197 | AE22: =(1-_xlfn.NORM.DIST(LN($U22+AE$2-$V22),$X22,$Y22,TRUE)) -> 0.9999717086 | AF22: 0.9983879493 | AG22: 0.9896418882 | AH22: 0.9688684833 | AI22: 0.9352883743 | AJ22: 0.8910278088 | AK22: 0.8392995619 | AL22: 0.7832785802 | AM22: 0.7256159822 | AN22: 0.6683189657 | AO22: 0.6127985122 | AP22: 0.55997604 | AQ22: 0.5103974818 | AR22: 0.4643339746 | AS22: 0.4218631695 | AT22: 0.3829316164 | AU22: 0.3474010242 | AV22: 0.3150816913 | AW22: 0.2857561245 | AX22: 0.2591953535 | AY22: 0.2351699069 | AZ22: 0.2134569484 | BA22: 0.1938446896 | BB22: 0.176134897 | BC22: 0.1601440888 | BD22: 0.1457038483 | BE22: 0.1326605581 | BF22: 0.1208747695 | BG22: 0.1102203576 | BH22: 0.1005835646 | BI22: 0.091862002 | BJ22: 0.08396365765 | BK22: 0.07680593671 | BL22: 0.07031475552 | BM22: 0.06442369726 | BN22: 0.05907323436 | BO22: 0.05421001784 | BP22: 0.04978623228 | BQ22: 0.04575901299 | BR22: 0.04208992139 | BS22: 0.03874447419
H23: 0.20 | I23: 0.05 | J23: 0.01 | K23: 0.01923076923 | L23: 0.000 | R23: 4 | S23: 4 | T23: 40 | U23: 2.1 | V23: 5 | W23: 2.1-5 | Z23: =GETPIVOTDATA("growth_rate",'[1]Growth rates'!$B$63,"Previous Size Class",4,"event2","no-growth") -> 15 | AA23: =AB23*P$5 -> 0.469 | AB23: =AC23+AC22*(1-AD22-AD21-AD20)+AC24*(1-AD24) -> 0.593 | AC23: =Z23/(Z23+Z24+Z22) -> 0.121 | AD23: 1.000
H24: 0.21 | I24: 0.24 | J24: 0.13 | K24: 0.07692307692 | L24: 0.000 | R24: 4 | S24: 5 | T24: 40 | U24: 2.1 | V24: 5 | W24: 2.1-5 | X24: ='[1]distribution-fitting'!$AZ$176 -> 0.1290341966 | Y24: ='[1]distribution-fitting'!$AZ$177 -> 0.6350261035 | Z24: =GETPIVOTDATA("growth_rate",'[1]Growth rates'!$B$63,"Previous Size Class",4,"event2","growth") -> 62 | AA24: =AB24*P$5 -> 0.207 | AB24: =AC24*AD24 -> 0.263 | AC24: =Z24/(Z24+Z20+Z23) -> 0.500 | AD24: =SUM(AE24:BS24)/T24 -> 0.525 | AE24: =(1-_xlfn.NORM.DIST(LN($V24),LN($U24+AE$2+EXP($X24)),$Y24,TRUE)) -> 0.2468842329 | AF24: =(1-_xlfn.NORM.DIST(LN($V24),LN($U24+AF$2+EXP($X24)),$Y24,TRUE)) -> 0.2622493251 | AG24: 0.2776156885 | AH24: 0.2929505832 | AI24: 0.3082242186 | AJ24: 0.3234096199 | AK24: 0.3384824838 | AL24: 0.3534210277 | AM24: 0.3682058365 | AN24: 0.3828197082 | AO24: 0.3972475031 | AP24: 0.4114759951 | AQ24: 0.425493729 | AR24: 0.439290883 | AS24: 0.4528591377 | AT24: 0.4661915518 | AU24: 0.4792824447 | AV24: 0.4921272863 | AW24: 0.5047225934 | AX24: 0.5170658332 | AY24: 0.5291553331 | AZ24: 0.5409901975 | BA24: 0.5525702298 | BB24: 0.5638958611 | BC24: 0.5749680838 | BD24: 0.5857883907 | BE24: 0.5963587188 | BF24: 0.6066813979 | BG24: 0.6167591037 | BH24: 0.6265948139 | BI24: 0.6361917693 | BJ24: 0.6455534374 | BK24: 0.65468348 | BL24: 0.663585723 | BM24: 0.6722641291 | BN24: 0.6807227739 | BO24: 0.688965823 | BP24: 0.6969975123 | BQ24: 0.7048221295 | BR24: 0.7124439983 | BS24: 0.7198674632
H25: 0.05 | I25: 0.11 | J25: 0.16 | K25: 0.03846153846 | L25: 0.000
H26: 0.04 | I26: 0.10 | J26: 0.23 | K26: 0.4423076923 | L26: 0.000
H27: 0.00 | I27: 0.00 | J27: 0.00 | K27: 0.07692307692 | L27: 1.000
G29: suvival | H29: =SUM(H23:H27) -> 0.495 | I29: =SUM(I23:I27) -> 0.500 | J29: =SUM(J23:J27) -> 0.529 | K29: =SUM(K23:K27) -> 0.654 | L29: =SUM(L23:L27) -> 1.000
U31: =G4 ->  | V31: < 0.6 | W31: 0.6 - 1 | X31: 1.1 - 2 | Y31: 2.1 - 5
U32: < 0.6 | V32: 0.4165119285 | W32: 0.07202395398 | X32: 0.02406588114 | Y32: 0.0313141149
U33: 0.6 - 1 | V33: 0.09498464967 | W33: 0.3739346375 | X33: 0.0988979783 | Y33: 0.02357490372
U34: 1.1 - 2 | V34: 0.05375416846 | W34: 0.08406874871 | X34: 0.3557970741 | Y34: 0.05908556521
U35: 2.1 - 5 | V35: 0.01892133757 | W35: 0.07613357865 | X35: 0.1462923323 | Y35: 0.4685528507
U36: >5 | V36: 0.001827915835 | W36: 0.01583908121 | X36: 0.05094673415 | Y36: 0.2074725655
U38: survival | V38: =H11 -> 0.586 | W38: =I11 -> 0.622 | X38: =J11 -> 0.676 | Y38: =K11 -> 0.79
Q41: =(T47*T$43+R47*$R$43+P47*$P$43+N47*$N$43+L47*$L$43)/(T47+R47+P47+N47+L47) -> 1.972 | R41: =(T47+R47+P47+N47+L47) -> 7.802297648
J42: modal year survival without negative grwoth | L42: 1 | N42: 2 | P42: 3 | R42: 4 | T42: 5 | V42: 6 | X42: 7 | Z42: 8 | AB42: 9 | AD42: 10
H43: 0.3 -0.5 | J43: 0 | K43: 0.5 | L43: 1 | M43: 1.5 | N43: 2 | O43: 2.5 | P43: 3 | Q43: 3.5 | R43: 4 | S43: 4.5 | T43: 5 | U43: 5.5 | V43: 6 | W43: 6.5 | X43: 7 | Y43: 7.5 | Z43: 8 | AA43: 8.5 | AB43: 9 | AC43: 9.5 | AD43: 10
I44: 0.3 - 0.5 | J44: 100 | K44: =MMULT($H$5:$L$9,J44:J48) -> 41.65119285 | L44: =MMULT($H$5:$L$9,K44:K48) -> 18.2209503 | M44: =MMULT($H$5:$L$9,L44:L48) -> 8.393030115 | N44: =MMULT($H$5:$L$9,M44:M48) -> 4.067413112 | O44: =MMULT($H$5:$L$9,N44:N48) -> 2.065136378 | P44: =MMULT($H$5:$L$9,O44:O48) -> 1.091266155 | Q44: =MMULT($H$5:$L$9,P44:P48) -> 0.5955885788 | R44: =MMULT($H$5:$L$9,Q44:Q48) -> 0.3332651515 | S44: =MMULT($H$5:$L$9,R44:R48) -> 0.1899757356 | T44: =MMULT($H$5:$L$9,S44:S48) -> 0.1097654208 | U44: =MMULT($H$5:$L$9,T44:T48) -> 0.06403536704 | V44: =MMULT($H$5:$L$9,U44:U48) -> 0.03761276482 | W44: =MMULT($H$5:$L$9,V44:V48) -> 0.02219892199 | X44: =MMULT($H$5:$L$9,W44:W48) -> 0.01314579067 | Y44: =MMULT($H$5:$L$9,X44:X48) -> 0.007803003162 | Z44: =MMULT($H$5:$L$9,Y44:Y48) -> 0.004639278945 | AA44: =MMULT($H$5:$L$9,Z44:Z48) -> 0.002761458655 | AB44: =MMULT($H$5:$L$9,AA44:AA48) -> 0.001645039278 | AC44: =MMULT($H$5:$L$9,AB44:AB48) -> 0.0009805258701 | AD44: =MMULT($H$5:$L$9,AC44:AC48) -> 0.000584673939
I45: 0.6 - 1.1 | J45: 0 | K45: 9.498464967 | L45: 8.084253744 | M45: 5.329362421 | N45: 3.226109822 | O45: 1.889810566 | P45: 1.094868256 | Q45: 0.6335857423 | R45: 0.3678039883 | S45: 0.2145072228 | T45: 0.1256970774 | U45: 0.07396735229 | V45: 0.04367871899 | W45: 0.02586407902 | X45: 0.01534765672 | Y45: 0.009121705854 | Z45: 0.00542774265 | AA45: 0.003232470616 | AB45: 0.001926281069 | AC45: 0.001148415394 | AD45: 0.0006848849516
I46: 1.2 - 2 | J46: 0 | K46: 5.375416846 | L46: 5.061804679 | M46: 3.648200404 | N46: 2.385855581 | O46: 1.492016238 | P46: 0.9122410391 | Q46: 0.5512282659 | R46: 0.3310230742 | S46: 0.1981413553 | T46: 0.1184049032 | U46: 0.07069810453 | V46: 0.04219693751 | W46: 0.0251818008 | X46: 0.01502702209 | Y46: 0.00896728308 | Z46: 0.005351296335 | AA46: 0.003193517594 | AB46: 0.001905860267 | AC46: 0.001137424186 | AD46: 0.0006788308573
I47: 2.1 - 5 | J47: 0 | K47: 1.892133757 | L47: 3.184195343 | M47: 3.192714937 | N47: 2.59421022 | O47: 1.887133154 | P47: 1.285445338 | Q47: 0.8397574005 | R47: 0.533617675 | S47: 0.3327622767 | T47: 0.2048290719 | U47: 0.1249416519 | V47: 0.07572739179 | W47: 0.04569247471 | X47: 0.02748240184 | Y47: 0.01649250381 | Z47: 0.009881565797 | AA47: 0.00591390428 | AB47: 0.003536513893 | AC47: 0.002113637424 | AD47: 0.001262733112
I48: 5 | J48: 0 | K48: 0.1827915835 | L48: 1.075799194 | M48: 2.155668304 | N48: 3.103686915 | O48: 3.82199942 | P48: 4.32324889 | Q48: 4.655755683 | R48: 4.869189687 | S48: 5.003200118 | T48: 5.086078673 | U48: 5.136798997 | V48: 5.167611426 | W48: 5.186233162 | X48: 5.197446269 | Y48: 5.204180813 | Z48: 5.208218151 | AA48: 5.210635387 | AB48: 5.212081306 | AC48: 5.212945651 | AD48: 5.213462103
I49: recruits | J49: =SUM(J44:J47) -> 100 | K49: =SUM(K44:K47) -> 58.41720842 | L49: =SUM(L44:L47) -> 34.55120406 | M49: 20.56330788 | N49: 12.27358873 | O49: 7.334096335 | P49: 4.383820788 | Q49: 2.620159988 | R49: 1.565709889 | S49: 0.9353865904 | T49: 0.5586964733 | U49: 0.3336424757 | V49: 0.1992158131 | W49: 0.1189372765 | X49: 0.07100287132 | Y49: 0.0423844959 | Z49: 0.02529988373 | AA49: 0.01510135115 | AB49: 0.009013694506 | AC49: 0.005380002875 | AD49: 0.00321112286 | AF49: average age of recruits in the class
I50: all | J50: =SUM(J44:J48) -> 100 | K50: 58.6 | L50: =SUM(L44:L48) -> 35.62700326 | M50: 22.71897618 | N50: 15.37727565 | O50: 11.15609575 | P50: 8.707069677 | Q50: 7.275915671 | R50: 6.434899576 | S50: 5.938586708 | T50: 5.644775146 | U50: 5.470441473 | V50: 5.366827239 | W50: 5.305170439 | X50: 5.26844914 | Y50: 5.246565309 | Z50: 5.233518035 | AA50: 5.225736738 | AB50: 5.221095001 | AC50: 5.218325654 | AD50: 5.216673226 | AF50: at | AG50: at | AH50: at
I51: delta 5 cm | K51: =K48-J48 -> 0.1827915835 | L51: =L48-K48 -> 0.8930076108 | M51: 1.079869109 | N51: 0.9480186119 | O51: 0.7183125041 | P51: 0.50124947 | Q51: 0.3325067937 | R51: 0.213434004 | S51: 0.1340104305 | T51: 0.08287855518 | U51: 0.05072032432 | V51: 0.03081242875 | W51: 0.01862173616 | X51: 0.01121310647 | Y51: =Y48-X48 -> 0.006734544296 | Z51: 0.004037338537 | AA51: 0.002417235547 | AB51: 0.001445919264 | AC51: 0.0008643444824 | AD51: 0.0005164519901 | AF51: settlement | AG51: plus 6 months | AH51: plus 1 yr
AF52: =(R44*R$43+P44*P$43+N44*N$43+L44*L$43+J44*J$43)/(R44+P44+N44+L44+J44) -> 0.25 | AG52: 0.78 | AH52: 1.32 | AI52: 0.3 - 0.5 cm
I53: Average sixe | K53: =(K44*0.4+K45*0.85+K46*1.6+K47*3.5)/K49 -> 0.6839989199 | L53: =(L44*0.4+L45*0.85+L46*1.6+L47*3.5)/L49 -> 0.966784455 | M53: 1.210835979 | N53: 1.406781966 | O53: 1.557735954 | P53: 1.671096785 | Q53: 1.754816294 | R53: 1.815941926 | S53: 1.860210087 | T53: =(T44*0.4+T45*0.85+T46*1.6+T47*3.5)/T49 -> 1.892079745 | U53: =(U44*0.4+U45*0.85+U46*1.6+U47*3.5)/U49 -> 1.914921485 | V53: 1.931237196 | W53: 1.942860855 | X53: 1.951124844 | Y53: 1.956990775 | Z53: 1.961149221 | AA53: 1.964094228 | AB53: 1.966178204 | AC53: 1.967651944 | AD53: 1.968693608 | AF53: 1.51 | AG53: 1.18 | AH53: 1.54 | AI53: 0.6 - 1.1 cm
AF54: 1.60 | AG54: 1.31 | AH54: 1.64 | AI54: 1.2 - 2 cm
G55: Number graduating | I55: Increase in >5 cm | K55: =K48-J48 -> 0.1827915835 | L55: 0.8930076108 | M55: 1.079869109 | N55: =N48-M48 -> 0.9480186119 | O55: =O48-N48 -> 0.7183125041 | P55: 0.50124947 | Q55: 0.3325067937 | R55: 0.213434004 | S55: 0.1340104305 | T55: 0.08287855518 | U55: 0.05072032432 | V55: 0.03081242875 | W55: 0.01862173616 | X55: =X48-W48 -> 0.01121310647 | Y55: =Y48-X48 -> 0.006734544296 | Z55: 0.004037338537 | AA55: 0.002417235547 | AB55: 0.001445919264 | AC55: 0.0008643444824 | AD55: 0.0005164519901 | AF55: 1.89 | AG55: 1.83 | AH55: 1.97 | AI55: 2- 5 cm
I56: Weighted increase | K56: =K55*K43 -> 0.09139579176 | L56: 0.8930076108 | M56: 1.619803664 | N56: =N55*N43 -> 1.896037224 | O56: =O55*O43 -> 1.79578126 | P56: 1.50374841 | Q56: 1.163773778 | R56: 0.8537360161 | S56: 0.6030469372 | T56: 0.4143927759 | U56: 0.2789617838 | V56: 0.1848745725 | W56: 0.121041285 | X56: 0.0784917453 | Y56: 0.05050908222 | Z56: 0.03229870829 | AA56: 0.02054650215 | AB56: 0.01301327337 | AC56: 0.008211272582 | AD56: 0.005164519901
I57: Weighted age of recruits | K57: =(K49*K43) -> 29.20860421 | L57: 34.55120406 | M57: 30.84496182 | N57: =(N49*N43) -> 24.54717747 | O57: =(O49*O43) -> 18.33524084 | P57: 13.15146236 | Q57: 9.170559956 | R57: 6.262839556 | S57: 4.209239657 | T57: 2.793482366 | U57: 1.835033617 | V57: 1.195294879 | W57: 0.7730922973 | X57: 0.4970200992 | Y57: 0.3178837193 | Z57: 0.2023990698 | AA57: 0.1283614847 | AB57: 0.08112325056 | AC57: 0.05111002731 | AD57: 0.0321112286 | AF57: =(L57+N57+P57+R57+T57)/(T49+R49+P49+N49+L49+100) -> 0.53 | AG57: =(K57+M57+O57+Q57+S57+U57)/(U49+S49+Q49+O49+M49+K49) -> 1.04 | AH57: =(L57+N57+P57+R57+T57)/(T49+R49+P49+N49+L49) -> 1.52 | AI57: average age of recruits at 5 y
I58: Proportion of available that grew to >5cm in the time interval | K58: =K55/K49 -> 0.003129070842 | L58: 0.02584591869 | M58: 0.05251436762 | N58: =N55/N49 -> 0.0772405392 | O58: =O55/O49 -> 0.09794151471 | P58: 0.1143407758 | Q58: 0.1269032407 | R58: 0.1363177211 | S58: 0.1432674274 | T58: 0.1483427212 | U58: 0.1520199855 | V58: 0.1546685892 | W58: 0.1565677028 | X58: 0.1579246904 | Y58: 0.1588916926 | Z58: 0.1595793317 | AA58: 0.1600675015 | AB58: 0.1604136087 | AC58: 0.1606587399 | AD58: 0.1608322112 | AH58: =(L57+N57+P57+R57+T57+V57+X57+Z57+AB57+AD57)/(T49+R49+P49+N49+L49+V49+X49+Z49+AB49+AD49) -> 1.55 | AI58: average age of recruits at 10 y
I60: Steady State Recruitment | AF60: =SUM(N55:AD55) -> 3.057793799
I61: 0.3 - 0.5 | J61: 100 | K61: =MMULT($H$5:$L$9,J81:J85) -> 41.65119285 | L61: =MMULT($H$5:$L$9,K81:K85) -> 18.2209503 | M61: =MMULT($H$5:$L$9,L81:L85) -> 50.04422296 | N61: =MMULT($H$5:$L$9,M81:M85) -> 22.28836341 | O61: =MMULT($H$5:$L$9,N81:N85) -> 52.10935934 | P61: =MMULT($H$5:$L$9,O81:O85) -> 23.37962956 | Q61: =MMULT($H$5:$L$9,P81:P85) -> 52.70494792 | R61: =MMULT($H$5:$L$9,Q81:Q85) -> 23.71289471 | S61: =MMULT($H$5:$L$9,R81:R85) -> 52.89492365 | T61: =MMULT($H$5:$L$9,S81:S85) -> 23.82266014 | U61: =MMULT($H$5:$L$9,T81:T85) -> 52.95895902 | V61: =MMULT($H$5:$L$9,U81:U85) -> 23.8602729 | W61: =MMULT($H$5:$L$9,V81:V85) -> 52.98115794 | X61: =MMULT($H$5:$L$9,W81:W85) -> 23.87341869 | Y61: =MMULT($H$5:$L$9,X81:X85) -> 52.98896095 | Z61: =MMULT($H$5:$L$9,Y81:Y85) -> 23.87805797 | AA61: =MMULT($H$5:$L$9,Z81:Z85) -> 52.99172241 | AB61: =MMULT($H$5:$L$9,AA81:AA85) -> 23.87970301 | AC61: =MMULT($H$5:$L$9,AB81:AB85) -> 52.99270293 | AD61: =MMULT($H$5:$L$9,AC81:AC85) -> 23.88028768 | AF61: =SUM(N56:AD56) -> 9.023629146
I62: 0.6 - 1.1 | J62: 0 | K62: 9.498464967 | L62: 8.084253744 | M62: 14.82782739 | N62: 11.31036357 | O62: 16.71763795 | P62: 12.40523182 | Q62: 17.3512237 | R62: 12.77303581 | S62: 17.56573092 | T62: 12.89873289 | U62: 17.63969827 | V62: 12.94241161 | W62: 17.66556235 | X62: 12.95775926 | Y62: 17.67468406 | Z62: 12.96318701 | AA62: 17.67791653 | AB62: 12.96511329 | AC62: 17.67906494 | AD62: 12.96579817
I63: 1.2 - 2 | J63: 0 | K63: 5.375416846 | L63: 5.061804679 | M63: 9.02361725 | N63: 7.44766026 | O63: 10.51563349 | P63: 8.359901299 | Q63: 11.06686175 | R63: 8.690924374 | S63: 11.26500311 | T63: 8.809329277 | U63: 11.33570121 | V63: 8.851526214 | W63: 11.36088301 | X63: 8.866553236 | Y63: 11.3698503 | Z63: 8.871904533 | AA63: 11.37304381 | AB63: 8.873810393 | AC63: 11.37418124 | AD63: 8.874489224
I64: 2.1 - 5 | J64: 0 | K64: 1.892133757 | L64: 3.184195343 | M64: 5.084848694 | N64: 5.778405563 | O64: 6.971981848 | P64: 7.063850901 | Q64: 7.811739248 | R64: 7.597468576 | S64: 8.144501525 | T64: 7.802297648 | U64: 8.269443177 | V64: 7.87802504 | W64: 8.315135651 | X64: 7.905507441 | Y64: 8.331628155 | Z64: 7.915389007 | AA64: 8.337542059 | AB64: 7.918925521 | AC64: 8.339655697 | AD64: 7.920188254
I65: 5 | J65: 0 | K65: 0.1827915835 | L65: 1.075799194 | M65: 2.338459887 | N65: 4.17948611 | O65: 6.160459307 | P65: 8.502734999 | Q65: 10.81621499 | R65: 13.37192469 | S65: 15.81941511 | T65: 18.45800336 | U65: 20.9562141 | V65: 23.62561479 | W65: 26.14244727 | X65: 28.82306105 | Y65: 31.34662808 | Z65: 34.03127921 | AA65: 36.55726347 | AB65: 39.24336051 | AC65: 41.77020912 | AD65: 44.45682261
I67: Number alive | J67: =SUM(J61:J65) -> 100 | K67: =SUM(K61:K64) -> 58.41720842 | L67: =SUM(L61:L64) -> 34.55120406 | M67: 78.98051629 | N67: 46.8247928 | O67: 86.31461263 | P67: 51.20861359 | Q67: 88.93477262 | R67: 52.77432347 | S67: 89.87015921 | T67: 53.33301995 | U67: 90.20380168 | V67: 53.53223576 | W67: 90.32273896 | X67: 53.60323863 | Y67: 90.36512346 | Z67: 53.62853852 | AA67: 90.38022481 | AB67: 53.63755221 | AC67: 90.38560481 | AD67: 53.64076333
I68: Number graduating | K68: =K65-J65 -> 0.1827915835 | L68: 0.8930076108 | M68: 1.262660693 | N68: 1.841026223 | O68: 1.980973197 | P68: 2.342275693 | Q68: 2.313479991 | R68: 2.555709697 | S68: 2.447490421 | T68: 2.638588252 | U68: 2.498210745 | V68: 2.669400681 | W68: 2.516832482 | X68: 2.680613787 | Y68: 2.523567026 | Z68: 2.684651126 | AA68: 2.525984261 | AB68: 2.686097045 | AC68: 2.526848606 | AD68: 2.686613497
AD70: =28.54/T67 -> 0.5351281444
I71: SIZE CLASS DISTRIBUTION | Q71: 5y
J72: 5 yr | K72: 6 yr | L72: 7 yr | M72: 8 yr | N72: 9 yr | O72: 10 yr
I73: 0.3 - 0.5 | J73: =T61/SUM(T$61:T$64) -> 45% | K73: =V61/SUM(V$61:V$64) -> 0.4457178476 | L73: =X61/SUM(X$61:X$64) -> 0.445372692 | M73: =Z61/SUM(Z$61:Z$64) -> 0.44524909 | N73: =AB61/SUM(AB$61:AB$64) -> 0.4452049362 | O73: =AD61/SUM(AD$61:AD$64) -> 44.5%
I74: 0.6 - 1.1 | J74: =T62/SUM(T$61:T$64) -> 24% | K74: =V62/SUM(V$61:V$64) -> 0.241768561 | L74: =X62/SUM(X$61:X$64) -> 0.2417346338 | M74: =Z62/SUM(Z$61:Z$64) -> 0.2417218027 | N74: =AB62/SUM(AB$61:AB$64) -> 0.2417170947 | O74: =AD62/SUM(AD$61:AD$64) -> 24.2%
I75: 1.2 - 2.0 | J75: =T63/SUM(T$61:T$64) -> 17% | K75: =V63/SUM(V$61:V$64) -> 0.1653494589 | L75: =X63/SUM(X$61:X$64) -> 0.1654107748 | M75: =Z63/SUM(Z$61:Z$64) -> 0.1654325249 | N75: =AB63/SUM(AB$61:AB$64) -> 0.1654402565 | O75: =AD63/SUM(AD$61:AD$64) -> 16.5%
I76: 2.1 - 5.0 | J76: =T64/SUM(T$61:T$64) -> 15% | K76: =V64/SUM(V$61:V$64) -> 0.1471641326 | L76: =X64/SUM(X$61:X$64) -> 0.1474818993 | M76: =Z64/SUM(Z$61:Z$64) -> 0.1475965825 | N76: =AB64/SUM(AB$61:AB$64) -> 0.1476377127 | O76: =AD64/SUM(AD$61:AD$64) -> 14.8%
I80: Steady State Recruitment (100 new recruits added to preceding size class 1)
I81: 0.3 - 0.5 | J81: =J61 -> 100 | K81: =K61 -> 41.65119285 | L81: =L61+$J$81 -> 118.2209503 | M81: =M61 -> 50.04422296 | N81: 122.2883634 | O81: =O61 -> 52.10935934 | P81: 123.3796296 | Q81: =Q61 -> 52.70494792 | R81: 123.7128947 | S81: =S61 -> 52.89492365 | T81: 123.8226601 | U81: =U61 -> 52.95895902 | V81: 123.8602729 | W81: =W61 -> 52.98115794 | X81: 123.8734187 | Y81: =Y61 -> 52.98896095 | Z81: 123.878058 | AA81: =AA61 -> 52.99172241 | AB81: 123.879703 | AC81: =AC61 -> 52.99270293 | AD81: 123.8802877
I82: 0.6 - 1.1 | J82: 0 | K82: =K62 -> 9.498464967 | L82: 8.084253744 | M82: 14.82782739 | N82: 11.31036357 | O82: 16.71763795 | P82: 12.40523182 | Q82: 17.3512237 | R82: 12.77303581 | S82: 17.56573092 | T82: 12.89873289 | U82: 17.63969827 | V82: 12.94241161 | W82: 17.66556235 | X82: 12.95775926 | Y82: 17.67468406 | Z82: 12.96318701 | AA82: 17.67791653 | AB82: 12.96511329 | AC82: 17.67906494 | AD82: 12.96579817
I83: 1.2 - 2 | J83: 0 | K83: =K63 -> 5.375416846 | L83: 5.061804679 | M83: 9.02361725 | N83: 7.44766026 | O83: 10.51563349 | P83: 8.359901299 | Q83: 11.06686175 | R83: 8.690924374 | S83: 11.26500311 | T83: 8.809329277 | U83: 11.33570121 | V83: 8.851526214 | W83: 11.36088301 | X83: 8.866553236 | Y83: 11.3698503 | Z83: 8.871904533 | AA83: 11.37304381 | AB83: 8.873810393 | AC83: 11.37418124 | AD83: 8.874489224
I84: 2.1 - 5 | J84: 0 | K84: =K64 -> 1.892133757 | L84: 3.184195343 | M84: 5.084848694 | N84: 5.778405563 | O84: 6.971981848 | P84: 7.063850901 | Q84: 7.811739248 | R84: 7.597468576 | S84: 8.144501525 | T84: 7.802297648 | U84: 8.269443177 | V84: 7.87802504 | W84: 8.315135651 | X84: 7.905507441 | Y84: 8.331628155 | Z84: 7.915389007 | AA84: 8.337542059 | AB84: 7.918925521 | AC84: 8.339655697 | AD84: 7.920188254
I85: 5 | J85: 0 | K85: =K65 -> 0.1827915835 | L85: 1.075799194 | M85: 2.338459887 | N85: 4.17948611 | O85: 6.160459307 | P85: 8.502734999 | Q85: 10.81621499 | R85: 13.37192469 | S85: 15.81941511 | T85: 18.45800336 | U85: 20.9562141 | V85: 23.62561479 | W85: 26.14244727 | X85: 28.82306105 | Y85: 31.34662808 | Z85: 34.03127921 | AA85: 36.55726347 | AB85: 39.24336051 | AC85: 41.77020912 | AD85: 44.45682261
U92: Comparison of model predictions to abundances of recruits at Grootpan Bay
U94: Grootpan 2016 | V94: model | X94: grootpan | Y94: model prediction
T95: < 0.6 | U95: =X95/$X$100 -> 0.6012861736 | V95: =Y95/Y$100 -> 0.4466775022 | X95: 187 | Y95: =T61 -> 23.82266014 | AA95: =X95+Y95 -> 210.8226601
T96: 0.6 - 1.1 | U96: =X96/$X$100 -> 0.1639871383 | V96: =Y96/Y$100 -> 0.2418526628 | X96: 51 | Y96: =T62 -> 12.89873289 | AA96: =X96+Y96 -> 63.89873289
T97: 1.2 - 2 | U97: =X97/$X$100 -> 0.09646302251 | V97: 0.1651758945 | X97: 30 | Y97: 8.809329277 | AA97: 38.80932928
T98: 2.1 - 5 | U98: =X98/$X$100 -> 0.1382636656 | V98: 0.1462939405 | X98: 43 | Y98: 7.802297648 | AA98: 50.80229765
X100: =SUM(X95:X98) -> 311 | Y100: =SUM(Y95:Y98) -> 53.33301995 | AA100: =X100+Y100 -> 364.3330199
U102: expected | X102: =$AA$100*X95/$AA95*X95/X$100 -> 194.3139897 | Y102: 18.38931612 | AA102: (o-e)/e^2 | AB102: =(X95-X102)^2/X102 -> 0.275298988 | AC102: =(Y95-Y102)^2/Y102 -> 1.605346657
X103: 47.68549011 | Y103: 17.78706164 | AB103: =(X96-X103)^2/X103 -> 0.230384039 | AC103: 1.343434821
X104: 27.16717729 | Y104: 13.660038 | AB104: =(X97-X104)^2/X104 -> 0.2953889688 | AC104: 1.722497046
X105: 42.63749693 | Y105: 8.185854691 | AB105: =(X98-X105)^2/X105 -> 0.003081993231 | AC105: 0.01797197863
AD106: chi-square
AB107: =SUM(AB102:AB105) -> 0.804153989 | AC107: =SUM(AC102:AC105) -> 4.689250502 | AD107: =AB107+AC107 -> 5.493404492
AD109: =_xlfn.CHISQ.DIST.RT(AD107,3) -> 0.1390336344
